[Event "URU-ch Semi Final 2020"]
[Site "Montevideo"]
[Date "2020.02.22"]
[Round "4"]
[White "Pichuaga, Juan Pablo"]
[Black "Ramirez, Agustin"]
[Result "1-0"]
[ECO "A48"]
[WhiteElo "2030"]
[BlackElo "1715"]
[Annotator "NA"]
[PlyCount "65"]
[EventDate "2020.02.22"]
[EventType "swiss"]
[EventCountry "URU"]
[SourceTitle "playchess.com"]
[Source "ChessBase"]
[SourceQuality "1"]
[TimeControl "5400+30"]

1. d4 {[%emt 0:00:00]} Nf6 {[%emt 0:03:09]} 2. Bf4 {[%emt 0:00:00]} g6 {[%emt 0:00:10]} 3. Nf3 {[%emt 0:00:00]} Bg7 {[%emt 0:00:14]} 4. e3 {[%emt 0:00:18]} O-O {[%emt 0:00:10]} 5. Be2 {[%emt 0:00:29]} d6 {[%emt 0:00:46]} 6. h3 {[%emt 0:00:14]} Nbd7 {[%emt 0:00:32]} 7. O-O {[%emt 0:01:41]} b6 {[%emt 0:02:10]} 8. c4 {[%emt 0:02:13]} c5 {[%emt 0:02:56]} 9. Nc3 {[%emt 0:02:46]} Re8 {[%emt 0:05:08]} 10. d5 {[%emt 0:04:45]} Nf8 {[%emt 0:08:29]} 11. Bh2 {[%emt 0:01:22]} h5 {[%emt 0:01:34]} 12. Qc2 {[%emt 0:06:59]} a6 {[%emt 0:02:35]} 13. a4 {[%emt 0:03:17]} Qc7 {[%emt 0:00:22]} 14. Bd3 {[%emt 0:03:40]} Bd7 {[%emt 0:03:00]} 15. e4 {[%emt 0:01:46]} N6h7 {[%emt 0:04:47]} 16. Rfe1 {[%emt 0:02:14]} e5 {[%emt 0:00:30]} 17. dxe6 {[%emt 0:07:35]} Nxe6 {[%emt 0:02:58]} 18. Nd5 {[%emt 0:02:33]} Qb8 {[%emt 0:05:26]} 19. Qb3 {[%emt 0:01:50]} Ra7 {[%emt 0:00:08]} 20. Qxb6 {[%emt 0:01:54]} Qxb6 {[%emt 0:00:10]} 21. Nxb6 {[%emt 0:00:22]} Rb8 {[%emt 0:00:11]} 22. a5 {[%emt 0:07:50]} Bxb2 {[%emt 0:02:14]} 23. Ra2 {[%emt 0:00:35]} Bc3 {[%emt 0:01:03]} 24. Rc1 {[%emt 0:00:33]} Bb4 {[%emt 0:02:19]} 25. Bxd6 {[%emt 0:00:42]} Rd8 {[%emt 0:00:16]} 26. Nd5 {[%emt 0:01:02]} Bc6 {[%emt 0:00:37]} 27. Bg3 {[%emt 0:03:12]} Neg5 {[%emt 0:02:42]} 28. Nxg5 {[%emt 0:00:46]} Nxg5 {[%emt 0:00:07]} 29. Bh4 {[%emt 0:00:15]} Bxd5 {[%emt 0:00:22]} 30. Bxg5 {[%emt 0:09:19]} f6 {[%emt 0:00:10]} 31. Bxf6 {[%emt 0:00:57]} Rf8 {[%emt 0:00:08]} 32. cxd5 {[%emt 0:01:30]} Rxf6 {[%emt 0:00:53]} 33. e5 {[%emt 0:00:24]} 1-0

[Event "URU-ch Semi Final 2020"]
[Site "Montevideo"]
[Date "2020.02.23"]
[Round "4.3"]
[White "Lopez Falcon, Jorge"]
[Black "Larrea, Manuel"]
[Result "1/2-1/2"]
[ECO "E06"]
[WhiteElo "2119"]
[BlackElo "2243"]
[Annotator "NA"]
[PlyCount "39"]
[EventDate "2020.02.22"]
[EventType "swiss"]
[EventCountry "URU"]
[SourceTitle "playchess.com"]
[Source "ChessBase"]
[SourceQuality "1"]
[TimeControl "5400+30"]

1. d4 {[%emt 0:00:00]} Nf6 {[%emt 0:00:53]} 2. c4 {[%emt 0:00:00]} e6 {[%emt 0:00:05]} 3. g3 {[%emt 0:00:04]} d5 {[%emt 0:00:22]} 4. Bg2 {[%emt 0:00:32]} Be7 {[%emt 0:00:57]} 5. Nf3 {[%emt 0:01:05]} O-O {[%emt 0:01:51]} 6. O-O {[%emt 0:02:21]} dxc4 {[%emt 0:04:50]} 7. Qc2 {[%emt 0:01:52]} b6 {[%emt 0:05:40]} 8. Qxc4 {[%emt 0:09:19]} Bb7 {[%emt 0:02:37]} 9. Nc3 {[%emt 0:01:45]} c5 {[%emt 0:11:36]} 10. dxc5 {[%emt 0:13:04]} Bxc5 {[%emt 0:00:57]} 11. Bg5 {[%emt 0:00:33]} Nbd7 {[%emt 0:17:11]} 12. Rfd1 {[%emt 0:03:26]} Qc8 {[%emt 0:04:06]} 13. Qh4 {[%emt 0:00:19]} h6 {[%emt 0:02:58]} 14. Bf4 $11 {[%emt 0:14:49]} Re8 {[%emt 0:23:13]} 15. Bd6 {[%emt 0:12:49]} e5 {[%emt 0:07:24]} 16. Bxc5 {[%emt 0:03:15]} Qxc5 {[%emt 0:03:18]} 17. Rac1 {[%emt 0:01:02]} Rac8 {[%emt 0:02:18]} 18. Nd2 {[%emt 0:03:56]} Bxg2 {[%emt 0:00:38]} 19. Kxg2 {[%emt 0:00:22]} Qc6+ {[%emt 0:01:12]} 20. f3 {[%emt 0:00:25]} 1/2-1/2

[Event "URU-ch Semi Final 2020"]
[Site "Montevideo"]
[Date "2020.02.23"]
[Round "4.8"]
[White "Dotta, Gian Franco"]
[Black "Granara Barreto, Sebastian"]
[Result "0-1"]
[ECO "B13"]
[WhiteElo "2000"]
[BlackElo "2132"]
[Annotator "ChessBase"]
[PlyCount "60"]
[EventDate "2020.02.22"]
[EventType "swiss"]
[EventCountry "URU"]
[SourceTitle "playchess.com"]
[Source "ChessBase"]
[SourceQuality "1"]
[TimeControl "5400+30"]

1. e4 {[%emt 0:00:00]} c6 {[%emt 0:00:00]} 2. d4 {[%emt 0:00:00]} d5 {[%emt 0:00:00]} 3. exd5 cxd5 {[%emt 0:00:00]} 4. Bd3 {[%emt 0:00:04]} Nc6 {[%emt 0:00:12]} 5. c3 {[%emt 0:00:26]} g6 {[%emt 0:00:06]} 6. Bf4 {[%emt 0:04:28]} Bg7 {[%emt 0:00:16]} 7. Nf3 {[%emt 0:02:22]} Nf6 {[%emt 0:00:08]} 8. h3 {[%emt 0:01:23]} O-O {[%emt 0:00:06]} 9. O-O {[%emt 0:00:08]} Nh5 {[%emt 0:03:20]} 10. Bg5 {[%emt 0:07:34]} Qd6 {[%emt 0:07:01]} 11. Qd2 {[%emt 0:05:03]} f6 {[%emt 0:06:22]} 12. Be3 {[%emt 0:01:55]} e5 {[%emt 0:21:17]} 13. dxe5 {[%emt 0:10:41]} fxe5 {[%emt 0:00:32]} 14. Bc4 {[%emt 0:05:10]} Be6 {[%emt 0:00:17]} 15. Ng5 {[%emt 0:05:24]} Na5 {[%emt 0:01:05]} 16. Bb3 {[%emt 0:03:33]} Nxb3 {[%emt 0:04:48]} 17. axb3 {[%emt 0:00:09]} a6 {[%emt 0:01:26]} 18. Bc5 {[%emt 0:03:48]} Qxc5 {[%emt 0:03:50]} 19. Nxe6 {[%emt 0:00:09]} Qc6 {[%emt 0:00:15]} 20. Nxf8 {[%emt 0:01:09]} Rxf8 {[%emt 0:00:02]} 21. Na3 {[%emt 0:15:04]} d4 {[%emt 0:05:56]} 22. Qe2 {[%emt 0:07:44]} Kh8 {[%emt 0:10:35]} 23. Qc4 {[%emt 0:03:59]} Qf6 {[%emt 0:00:52]} 24. Qc7 {[%emt 0:05:26]} b5 {[%emt 0:01:03]} 25. cxd4 {[%emt 0:01:56]} exd4 {[%emt 0:00:17]} 26. Rad1 {[%emt 0:02:26]} Nf4 {[%emt 0:01:32]} 27. Nc2 {[%emt 0:02:04]} Qg5 {[%emt 0:00:53]} 28. g3 {[%emt 0:01:32]} Nxh3+ {[%emt 0:02:07]} 29. Kh2 {[%emt 0:02:54]} Be5 {[%emt 0:01:06]} 30. Qc6 {[%emt 0:03:59]} Rxf2+ {[%emt 0:00:31]} 0-1

[Event "URU-ch Semi Final 2020"]
[Site "Montevideo"]
[Date "2020.02.23"]
[Round "4.10"]
[White "Suarez, Pedro"]
[Black "Salguero, Rafael"]
[Result "1-0"]
[ECO "D35"]
[WhiteElo "2063"]
[BlackElo "1906"]
[Annotator "ChessBase"]
[PlyCount "105"]
[EventDate "2020.02.22"]
[EventType "swiss"]
[EventCountry "URU"]
[SourceTitle "playchess.com"]
[Source "ChessBase"]
[SourceQuality "1"]
[TimeControl "5400+30"]

1. d4 {[%emt 0:01:08]} d5 {[%emt 0:00:00]} 2. c4 {[%emt 0:00:38]} e6 {[%emt 0:00:00]} 3. Nc3 {[%emt 0:01:02]} Nf6 {[%emt 0:00:00]} 4. cxd5 {[%emt 0:00:41]} exd5 {[%emt 0:00:09]} 5. Bg5 {[%emt 0:00:40]} c6 {[%emt 0:00:15]} 6. e3 {[%emt 0:02:48]} Bf5 {[%emt 0:00:21]} 7. Bd3 {[%emt 0:06:12]} Bxd3 {[%emt 0:01:06]} 8. Qxd3 {[%emt 0:00:07]} Nbd7 {[%emt 0:02:00]} 9. Nge2 {[%emt 0:03:08]} Bd6 {[%emt 0:01:48]} 10. f3 {[%emt 0:00:37]} Qc7 {[%emt 0:01:10]} 11. e4 {[%emt 0:05:58]} dxe4 {[%emt 0:09:54]} 12. fxe4 {[%emt 0:00:52]} Bxh2 {[%emt 0:04:24]} 13. Qh3 {[%emt 0:02:23]} Bd6 {[%emt 0:05:39]} 14. e5 {[%emt 0:01:20]} Nxe5 {[%emt 0:00:16]} 15. dxe5 {[%emt 0:00:10]} Bxe5 {[%emt 0:00:05]} 16. O-O-O {[%emt 0:02:38]} Nd5 {[%emt 0:13:05]} 17. Kb1 {[%emt 0:09:04]} f6 {[%emt 0:08:51]} 18. Nxd5 {[%emt 0:04:52]} cxd5 {[%emt 0:00:20]} 19. Qe6+ {[%emt 0:00:22]} Qe7 {[%emt 0:04:52]} 20. Qxe7+ {[%emt 0:02:17]} Kxe7 {[%emt 0:00:07]} 21. Be3 {[%emt 0:02:28]} d4 {[%emt 0:00:26]} 22. Bxd4 {[%emt 0:00:22]} Bxd4 {[%emt 0:02:21]} 23. Nxd4 {[%emt 0:00:05]} g6 {[%emt 0:00:39]} 24. Nb5 {[%emt 0:00:30]} f5 {[%emt 0:01:44]} 25. Rd6 {[%emt 0:01:57]} a6 {[%emt 0:04:02]} 26. Re1+ {[%emt 0:00:07]} Kf7 {[%emt 0:00:11]} 27. Rd7+ {[%emt 0:01:24]} Kf6 {[%emt 0:00:23]} 28. Nc3 {[%emt 0:02:20]} b5 {[%emt 0:00:55]} 29. Nd5+ {[%emt 0:02:01]} Kg5 {[%emt 0:00:17]} 30. Nc7 {[%emt 0:02:16]} Rac8 {[%emt 0:02:48]} 31. Ree7 {[%emt 0:00:46]} Kg4 {[%emt 0:02:40]} 32. Rxh7 {[%emt 0:03:41]} Kg3 {[%emt 0:00:50]} 33. Rxh8 {[%emt 0:02:32]} Rxh8 {[%emt 0:00:07]} 34. Rg7 {[%emt 0:00:04]} Rh6 {[%emt 0:04:43]} 35. Ne6 {[%emt 0:02:12]} Kxg2 {[%emt 0:04:55]} 36. Nf4+ {[%emt 0:00:19]} Kf3 {[%emt 0:00:30]} 37. Nxg6 {[%emt 0:00:10]} f4 {[%emt 0:00:22]} 38. Kc2 {[%emt 0:01:57]} a5 {[%emt 0:02:41]} 39. Kd3 {[%emt 0:01:12]} Rh5 {[%emt 0:05:30]} 40. Rf7 {[%emt 0:00:51]} Rd5+ {[%emt 0:00:03]} 41. Kc3 {[%emt 0:00:34]} Rc5+ {[%emt 0:00:11]} 42. Kb3 {[%emt 0:00:11]} a4+ {[%emt 0:03:36]} 43. Ka3 {[%emt 0:00:47]} Ke3 {[%emt 0:02:19]} 44. Nxf4 {[%emt 0:00:26]} Rc2 {[%emt 0:00:54]} 45. Nd5+ {[%emt 0:00:15]} Kd4 {[%emt 0:00:33]} 46. Nb4 {[%emt 0:00:32]} Rh2 {[%emt 0:00:29]} 47. Rc7 {[%emt 0:00:50]} Rh3+ {[%emt 0:01:47]} 48. b3 {[%emt 0:00:03]} Rg3 {[%emt 0:00:35]} 49. Nc2+ {[%emt 0:00:11]} Kd5 {[%emt 0:00:18]} 50. Kb4 {[%emt 0:00:15]} axb3 {[%emt 0:01:41]} 51. axb3 {[%emt 0:00:05]} Kd6 {[%emt 0:00:18]} 52. Rc3 {[%emt 0:00:06]} Rg5 {[%emt 0:00:21]} 53. Na3 {[%emt 0:00:15]} 1-0

[Event "URU-ch Semi Final 2020"]
[Site "Montevideo"]
[Date "2020.02.23"]
[Round "4.11"]
[White "Lanzilotta, Marcelo"]
[Black "Palacio, Enzo"]
[Result "1-0"]
[ECO "B20"]
[WhiteElo "2003"]
[BlackElo "1869"]
[Annotator "NA"]
[PlyCount "67"]
[EventDate "2020.02.22"]
[EventType "swiss"]
[EventCountry "URU"]
[SourceTitle "playchess.com"]
[Source "ChessBase"]
[SourceQuality "1"]
[TimeControl "5400+30"]

1. e4 {[%emt 0:17:50]} c5 {[%emt 0:00:00]} 2. d3 {[%emt 0:00:37]} Nc6 {[%emt 0:00:00]} 3. Nf3 {[%emt 0:00:10]} g6 {[%emt 0:00:00]} 4. g3 {[%emt 0:00:10]} Bg7 {[%emt 0:00:00]} 5. Bg2 {[%emt 0:00:09]} e5 {[%emt 0:00:00]} 6. O-O {[%emt 0:00:14]} Nge7 {[%emt 0:00:00]} 7. Be3 {[%emt 0:00:52]} d6 {[%emt 0:00:00]} 8. c3 {[%emt 0:01:17]} O-O {[%emt 0:00:00]} 9. Qd2 {[%emt 0:00:05]} Rb8 {[%emt 0:00:56]} 10. Bh6 {[%emt 0:00:13]} Bxh6 {[%emt 0:00:03]} 11. Qxh6 {[%emt 0:00:08]} f6 {[%emt 0:00:04]} 12. Nbd2 {[%emt 0:04:42]} Be6 {[%emt 0:02:21]} 13. Bh3 {[%emt 0:00:32]} Qd7 {[%emt 0:01:50]} 14. Bxe6+ {[%emt 0:00:33]} Qxe6 {[%emt 0:00:03]} 15. Nc4 {[%emt 0:07:43]} d5 {[%emt 0:11:05]} 16. Ncd2 {[%emt 0:09:58]} d4 {[%emt 0:03:15]} 17. Nb3 {[%emt 0:08:36]} b6 {[%emt 0:01:12]} 18. c4 {[%emt 0:03:42]} Kh8 {[%emt 0:03:25]} 19. a3 {[%emt 0:01:13]} Qg4 {[%emt 0:06:36]} 20. Kg2 {[%emt 0:00:46]} g5 {[%emt 0:01:05]} 21. h3 {[%emt 0:01:52]} Qe6 {[%emt 0:00:38]} 22. Nxg5 {[%emt 0:01:28]} Qg8 {[%emt 0:00:01]} 23. Nf3 {[%emt 0:00:32]} Ng6 {[%emt 0:01:05]} 24. Kh2 {[%emt 0:04:04]} Nce7 {[%emt 0:00:46]} 25. h4 {[%emt 0:06:56]} Rf7 {[%emt 0:02:33]} 26. Nbd2 {[%emt 0:03:09]} Rg7 {[%emt 0:02:24]} 27. Rg1 {[%emt 0:01:59]} Qf7 {[%emt 0:01:37]} 28. Rae1 {[%emt 0:04:58]} Rf8 {[%emt 0:08:27]} 29. h5 {[%emt 0:02:59]} Ng8 {[%emt 0:02:58]} 30. hxg6 {[%emt 0:02:06]} Rxg6 {[%emt 0:00:45]} 31. Qh3 {[%emt 0:00:07]} Nh6 {[%emt 0:00:25]} 32. Nh4 {[%emt 0:02:53]} Ng4+ {[%emt 0:01:16]} 33. Kg2 {[%emt 0:00:04]} Rg5 {[%emt 0:00:45]} 34. Ndf3 1-0

[Event "URU-ch Semi Final 2020"]
[Site "Montevideo"]
[Date "2020.02.23"]
[Round "4.12"]
[White "Avedisian, Alexander"]
[Black "Rey, Fernando"]
[Result "1-0"]
[ECO "A00"]
[WhiteElo "1892"]
[BlackElo "1640"]
[Annotator "NA"]
[PlyCount "55"]
[EventDate "2020.02.22"]
[EventType "swiss"]
[EventCountry "URU"]
[SourceTitle "playchess.com"]
[Source "ChessBase"]
[SourceQuality "1"]
[TimeControl "5400+30"]

1. g3 {[%emt 0:00:00]} c5 {[%emt 0:05:53]} 2. Bg2 {[%emt 0:00:12]} Nc6 {[%emt 0:00:30]} 3. Nf3 {[%emt 0:00:12]} g6 {[%emt 0:00:22]} 4. O-O {[%emt 0:00:07]} Bg7 {[%emt 0:00:02]} 5. c3 {[%emt 0:00:13]} e5 {[%emt 0:01:00]} 6. d4 {[%emt 0:00:11]} cxd4 7. cxd4 {[%emt 0:00:08]} e4 {[%emt 0:00:54]} 8. Ne5 {[%emt 0:00:08]} d5 {[%emt 0:00:11]} 9. Nc3 {[%emt 0:00:07]} Nge7 {[%emt 0:00:17]} 10. Bg5 {[%emt 0:01:56]} f6 {[%emt 0:00:31]} 11. Nxc6 {[%emt 0:00:13]} bxc6 {[%emt 0:00:16]} 12. Bf4 {[%emt 0:00:12]} O-O {[%emt 0:01:44]} 13. Na4 {[%emt 0:00:31]} Be6 {[%emt 0:05:34]} 14. Qb3 {[%emt 0:10:36]} g5 {[%emt 0:00:38]} 15. Nc5 {[%emt 0:00:40]} Bc8 {[%emt 0:01:25]} 16. Bd2 {[%emt 0:03:28]} Qb6 {[%emt 0:02:32]} 17. Qa3 {[%emt 0:03:31]} Rf7 {[%emt 0:02:12]} 18. Ba5 {[%emt 0:03:06]} Qb5 {[%emt 0:00:50]} 19. e3 {[%emt 0:01:48]} Bf8 {[%emt 0:01:21]} 20. Qc3 {[%emt 0:04:58]} Nf5 {[%emt 0:00:48]} 21. a4 {[%emt 0:00:42]} Qb8 {[%emt 0:01:17]} 22. b4 {[%emt 0:07:22]} Nd6 {[%emt 0:00:56]} 23. Rab1 {[%emt 0:02:55]} a6 {[%emt 0:00:59]} 24. Rfc1 {[%emt 0:04:10]} Nc4 {[%emt 0:00:51]} 25. Nxe4 {[%emt 0:02:33]} Nxa5 {[%emt 0:02:14]} 26. bxa5 {[%emt 0:01:16]} Qc7 {[%emt 0:02:04]} 27. Nd2 {[%emt 0:02:14]} Bd7 {[%emt 0:00:51]} 28. Bxd5 1-0

[Event "URU-ch Semi Final 2020"]
[Site "Montevideo"]
[Date "2020.02.23"]
[Round "4.13"]
[White "Ruggiero, Alvaro"]
[Black "Garcia, Matias"]
[Result "1-0"]
[ECO "B01"]
[WhiteElo "1843"]
[BlackElo "1810"]
[Annotator "NA RC"]
[PlyCount "77"]
[EventDate "2020.02.22"]
[EventType "swiss"]
[EventCountry "URU"]
[SourceTitle "playchess.com"]
[Source "ChessBase"]
[SourceQuality "1"]
[TimeControl "5400+30"]

1. e4 {[%emt 0:06:05]} d5 {[%emt 0:00:00]} 2. exd5 {[%emt 0:00:39]} Qxd5 {[%emt 0:00:00]} 3. d4 {[%emt 0:00:24]} e5 {[%emt 0:00:10]} 4. dxe5 {[%emt 0:00:58]} Qxd1+ 5. Kxd1 {[%emt 0:00:09]} Nc6 {[%emt 0:01:41]} 6. Nf3 {[%emt 0:00:46]} Bg4 {[%emt 0:00:43]} 7. Bd3 {[%emt 0:01:58]} O-O-O {[%emt 0:03:07]} 8. Re1 {[%emt 0:01:18]} Nb4 {[%emt 0:04:24]} 9. Kd2 {[%emt 0:00:23]} Be7 {[%emt 0:04:22]} 10. Nc3 {[%emt 0:06:43]} c5 {[%emt 0:12:37]} 11. Ke2 {[%emt 0:02:21]} c4 {[%emt 0:07:43]} 12. Be4 {[%emt 0:00:26]} f5 {[%emt 0:00:23]} 13. exf6 {[%emt 0:00:25]} Nxf6 {[%emt 0:00:23]} 14. Kf1 {[%emt 0:01:31]} Rhe8 {[%emt 0:03:28]} 15. a3 {[%emt 0:00:43]} Nxe4 {[%emt 0:03:26]} 16. Rxe4 {[%emt 0:03:04]} Bxf3 {[%emt 0:03:02]} 17. gxf3 {[%emt 0:00:19]} Nxc2 {[%emt 0:02:26]} 18. Rxc4+ {[%emt 0:00:09]} Kb8 {[%emt 0:01:28]} 19. Bf4+ {[%emt 0:00:31]} Bd6 {[%emt 0:00:54]} 20. Bxd6+ {[%emt 0:00:13]} Rxd6 {[%emt 0:00:02]} 21. Rc1 {[%emt 0:03:15]} Nd4 {[%emt 0:02:55]} 22. Ne4 {[%emt 0:02:00]} Rc6 {[%emt 0:03:44]} 23. Rxc6 {[%emt 0:01:28]} Nxc6 {[%emt 0:00:02]} 24. Rc3 {[%emt 0:01:10]} a6 {[%emt 0:04:58]} 25. Rb3 {[%emt 0:00:34]} Ka7 {[%emt 0:03:05]} 26. Rxb7+ {[%emt 0:00:23]} Kxb7 {[%emt 0:00:18]} 27. Nd6+ {[%emt 0:00:08]} Kb6 {[%emt 0:00:33]} 28. Nxe8 {[%emt 0:00:13]} Na5 {[%emt 0:00:20]} 29. Nxg7 {[%emt 0:00:28]} Nc4 {[%emt 0:00:01]} 30. f4 {[%emt 0:00:15]} Nxb2 {[%emt 0:00:13]} 31. f5 {[%emt 0:00:36]} Kc6 {[%emt 0:01:11]} 32. Ne6 {[%emt 0:01:12]} Kd6 {[%emt 0:05:11]} 33. Ke2 {[%emt 0:00:48]} Nc4 {[%emt 0:00:47]} 34. a4 {[%emt 0:00:59]} Nb2 {[%emt 0:00:42]} 35. a5 {[%emt 0:00:22]} Nc4 {[%emt 0:00:03]} 36. Nd8 {[%emt 0:00:54]} Nxa5 {[%emt 0:02:43]} 37. f6 {[%emt 0:00:13]} Kd7 {[%emt 0:03:56]} 38. f7 {[%emt 0:00:29]} Ke7 {[%emt 0:00:08]} 39. Ne6 {[%emt 0:00:11]} 1-0

[Event "URU-ch Semi Final 2020"]
[Site "Montevideo"]
[Date "2020.02.23"]
[Round "4.14"]
[White "Soto, Nicolas"]
[Black "Osinaga, Eduardo"]
[Result "1-0"]
[ECO "B54"]
[WhiteElo "2002"]
[BlackElo "1697"]
[Annotator "NA"]
[PlyCount "73"]
[EventDate "2020.02.22"]
[EventType "swiss"]
[EventCountry "URU"]
[SourceTitle "playchess.com"]
[Source "ChessBase"]
[SourceQuality "1"]
[TimeControl "5400+30"]

1. e4 {[%emt 0:00:00]} c5 {[%emt 0:00:00]} 2. Nf3 {[%emt 0:00:00]} d6 {[%emt 0:00:00]} 3. d4 {[%emt 0:00:00]} cxd4 4. Nxd4 {[%emt 0:00:04]} e5 {[%emt 0:00:12]} 5. Nb3 {[%emt 0:00:06]} h6 {[%emt 0:00:18]} 6. Nc3 {[%emt 0:00:18]} Nf6 {[%emt 0:00:12]} 7. f3 {[%emt 0:00:15]} Be7 {[%emt 0:00:20]} 8. Be3 {[%emt 0:00:05]} Be6 {[%emt 0:00:39]} 9. Qd2 {[%emt 0:00:28]} O-O {[%emt 0:00:22]} 10. O-O-O {[%emt 0:00:05]} a6 {[%emt 0:01:18]} 11. Kb1 {[%emt 0:02:28]} Nbd7 {[%emt 0:03:51]} 12. g4 {[%emt 0:02:05]} Nh7 {[%emt 0:03:46]} 13. h4 {[%emt 0:03:37]} Bxh4 {[%emt 0:05:01]} 14. Bxh6 {[%emt 0:00:27]} Nc5 {[%emt 0:10:36]} 15. Be3 {[%emt 0:26:10]} Nxb3 {[%emt 0:09:18]} 16. axb3 {[%emt 0:00:16]} g5 {[%emt 0:10:23]} 17. Qxd6 {[%emt 0:16:01]} Qf6 {[%emt 0:00:19]} 18. Be2 {[%emt 0:01:16]} b5 {[%emt 0:01:17]} 19. Nd5 {[%emt 0:02:17]} Bxd5 {[%emt 0:01:07]} 20. Rxd5 {[%emt 0:00:12]} Rfe8 {[%emt 0:01:53]} 21. Qxf6 {[%emt 0:04:47]} Nxf6 {[%emt 0:00:17]} 22. Rd6 {[%emt 0:00:04]} Kg7 {[%emt 0:00:34]} 23. Rhd1 {[%emt 0:00:19]} Nh7 {[%emt 0:03:13]} 24. Rb6 {[%emt 0:03:58]} Nf8 {[%emt 0:00:23]} 25. Rdd6 {[%emt 0:01:26]} Re6 {[%emt 0:00:16]} 26. c4 {[%emt 0:01:10]} Rxd6 {[%emt 0:00:47]} 27. Rxd6 {[%emt 0:00:06]} b4 {[%emt 0:00:28]} 28. c5 {[%emt 0:01:41]} a5 {[%emt 0:00:22]} 29. Ra6 {[%emt 0:01:48]} Rxa6 {[%emt 0:01:20]} 30. Bxa6 {[%emt 0:00:01]} Ne6 {[%emt 0:03:46]} 31. c6 {[%emt 0:00:59]} Kf8 {[%emt 0:00:38]} 32. Bb6 {[%emt 0:01:01]} Be1 {[%emt 0:01:49]} 33. c7 {[%emt 0:00:27]} Nxc7 {[%emt 0:00:07]} 34. Bxc7 {[%emt 0:00:04]} f6 {[%emt 0:00:13]} 35. Bxa5 {[%emt 0:00:11]} Ke7 {[%emt 0:00:34]} 36. Kc2 {[%emt 0:00:05]} Kd6 {[%emt 0:00:38]} 37. Kd1 {[%emt 0:00:07]} 1-0

[Event "URU-ch Semi Final 2020"]
[Site "Montevideo"]
[Date "2020.02.23"]
[Round "4.15"]
[White "Zaruski, Julio"]
[Black "Campora, Edgardo"]
[Result "1/2-1/2"]
[ECO "A05"]
[WhiteElo "1822"]
[BlackElo "1676"]
[Annotator "NA"]
[PlyCount "112"]
[EventDate "2020.02.22"]
[EventType "swiss"]
[EventCountry "URU"]
[SourceTitle "playchess.com"]
[Source "ChessBase"]
[SourceQuality "1"]
[TimeControl "5400+30"]

1. Nf3 {[%emt 0:00:00]} Nf6 {[%emt 0:06:23]} 2. b3 {[%emt 0:00:00]} g6 {[%emt 0:00:54]} 3. Bb2 {[%emt 0:00:00]} Bg7 {[%emt 0:00:07]} 4. e3 {[%emt 0:00:09]} O-O {[%emt 0:00:32]} 5. Be2 {[%emt 0:00:09]} b6 {[%emt 0:10:59]} 6. O-O {[%emt 0:00:16]} Bb7 {[%emt 0:00:05]} 7. d3 {[%emt 0:00:34]} c5 {[%emt 0:01:28]} 8. Nbd2 {[%emt 0:00:19]} d5 {[%emt 0:01:50]} 9. c4 {[%emt 0:02:41]} e6 {[%emt 0:01:01]} 10. Rc1 {[%emt 0:01:45]} Nbd7 {[%emt 0:10:08]} 11. cxd5 {[%emt 0:01:30]} exd5 {[%emt 0:01:23]} 12. Re1 {[%emt 0:06:20]} Re8 {[%emt 0:08:27]} 13. Bf1 {[%emt 0:00:09]} Rc8 {[%emt 0:00:48]} 14. g3 {[%emt 0:00:08]} Ba6 {[%emt 0:14:38]} 15. e4 {[%emt 0:04:41]} Bb7 {[%emt 0:09:28]} 16. exd5 {[%emt 0:00:37]} Rxe1 {[%emt 0:00:38]} 17. Qxe1 {[%emt 0:00:35]} Nxd5 {[%emt 0:00:49]} 18. Bxg7 Kxg7 19. d4 {[%emt 0:01:41]} cxd4 {[%emt 0:07:38]} 20. Rxc8 {[%emt 0:00:09]} Bxc8 {[%emt 0:03:18]} 21. Nxd4 {[%emt 0:00:09]} Qf6 {[%emt 0:02:12]} 22. N2f3 {[%emt 0:03:26]} Ne7 {[%emt 0:09:24]} 23. Bg2 {[%emt 0:04:16]} Nf5 {[%emt 0:05:00]} 24. Qc3 {[%emt 0:03:33]} Nxd4 {[%emt 0:03:55]} 25. Qxd4 {[%emt 0:08:56]} Nc5 {[%emt 0:00:44]} 26. Qxf6+ {[%emt 0:02:19]} Kxf6 {[%emt 0:00:02]} 27. Nd4 {[%emt 0:00:14]} Bd7 {[%emt 0:01:01]} 28. Kf1 {[%emt 0:01:38]} Ne6 {[%emt 0:00:32]} 29. Nc6 {[%emt 0:00:27]} a5 {[%emt 0:00:09]} 30. a3 {[%emt 0:01:13]} Nc5 {[%emt 0:00:30]} 31. b4 {[%emt 0:00:16]} axb4 {[%emt 0:00:05]} 32. Nxb4 {[%emt 0:00:21]} Bb5+ {[%emt 0:00:50]} 33. Ke1 {[%emt 0:00:13]} Nd3+ {[%emt 0:00:40]} 34. Nxd3 {[%emt 0:00:11]} Bxd3 {[%emt 0:00:02]} 35. Kd2 {[%emt 0:00:06]} Bb5 {[%emt 0:00:37]} 36. Bd5 {[%emt 0:00:20]} Be8 {[%emt 0:00:16]} 37. f4 {[%emt 0:00:31]} Kf5 {[%emt 0:01:17]} 38. Bf3 {[%emt 0:01:18]} f6 {[%emt 0:00:18]} 39. Ke3 {[%emt 0:00:08]} g5 {[%emt 0:00:12]} 40. Be4+ {[%emt 0:00:54]} Kg4 {[%emt 0:00:57]} 41. Bxh7 {[%emt 0:01:05]} Kh3 {[%emt 0:00:02]} 42. fxg5 {[%emt 0:00:59]} fxg5 {[%emt 0:00:02]} 43. Kf3 {[%emt 0:06:51]} Kxh2 {[%emt 0:01:28]} 44. Kg4 {[%emt 0:00:06]} Bd7+ {[%emt 0:00:09]} 45. Kxg5 {[%emt 0:00:08]} Kxg3 {[%emt 0:00:02]} 46. Kf6 {[%emt 0:00:11]} Kf4 {[%emt 0:00:11]} 47. Ke7 {[%emt 0:00:07]} Ba4 {[%emt 0:00:07]} 48. Kd6 {[%emt 0:00:06]} Ke3 {[%emt 0:00:21]} 49. Kc7 {[%emt 0:00:19]} Kd4 {[%emt 0:00:05]} 50. Kxb6 {[%emt 0:00:10]} Kc3 {[%emt 0:00:07]} 51. Ka5 {[%emt 0:00:10]} Bd1 {[%emt 0:00:07]} 52. Bg8 {[%emt 0:00:26]} Bc2 {[%emt 0:00:13]} 53. Bf7 {[%emt 0:00:25]} Bd1 {[%emt 0:00:11]} 54. Be6 {[%emt 0:00:37]} Bc2 {[%emt 0:00:08]} 55. Kb5 {[%emt 0:00:49]} Bd1 {[%emt 0:00:10]} 56. a4 {[%emt 0:00:14]} Bxa4+ {[%emt 0:00:05]} 1/2-1/2